[Event "Late-Titled-Tuesday-Blitz-February-06-2024"]
[Site "Chess.com"]
[Date "2024.02.06"]
[Round "7"]
[White "DanielDardha2005"]
[Black "GothamChess"]
[Result "0-1"]
[WhiteElo "2899"]
[BlackElo "2723"]
[TimeControl "180+1"]
[EndTime "15:18:55 PST"]
[Termination "GothamChess won by resignation"]

1. e4 {[%clk 0:02:52.6]} 1... e6 {[%clk 0:02:59.2]} 2. Qg4 {[%clk 0:02:51.3]}
2... d5 {[%clk 0:02:55.9]} 3. exd5 {[%clk 0:02:51.5]} 3... Nf6 {[%clk
0:02:55.9]} 4. Qa4+ {[%clk 0:02:45.8]} 4... Bd7 {[%clk 0:02:54]} 5. Bb5 {[%clk
0:02:44.5]} 5... Nxd5 {[%clk 0:02:49.3]} 6. Bxd7+ {[%clk 0:02:42.9]} 6... Nxd7
{[%clk 0:02:49.3]} 7. Nf3 {[%clk 0:02:42.5]} 7... Bd6 {[%clk 0:02:44.7]} 8. d4
{[%clk 0:02:38.3]} 8... O-O {[%clk 0:02:43.4]} 9. O-O {[%clk 0:02:33.4]} 9... c5
{[%clk 0:02:38.3]} 10. Bg5 {[%clk 0:02:16.5]} 10... Qc7 {[%clk 0:02:32.1]} 11.
c3 {[%clk 0:02:03]} 11... N7b6 {[%clk 0:02:19]} 12. Qd1 {[%clk 0:01:56.3]} 12...
cxd4 {[%clk 0:02:13.9]} 13. Qxd4 {[%clk 0:01:55.4]} 13... h6 {[%clk 0:02:06.7]}
14. Bh4 {[%clk 0:01:55.2]} 14... Nf4 {[%clk 0:02:01.9]} 15. Qe4 {[%clk
0:01:48.8]} 15... f5 {[%clk 0:01:56.1]} 16. Qc2 {[%clk 0:01:48.7]} 16... e5
{[%clk 0:01:41.1]} 17. Na3 {[%clk 0:01:42.6]} 17... a6 {[%clk 0:01:25.2]} 18.
Rfe1 {[%clk 0:01:38.7]} 18... e4 {[%clk 0:01:22.6]} 19. Nd4 {[%clk 0:01:35]}
19... Nd3 {[%clk 0:01:19.8]} 20. Qb3+ {[%clk 0:01:04.2]} 20... Kh8 {[%clk
0:01:15.5]} 21. Ne6 {[%clk 0:01:04.6]} 21... Bxh2+ {[%clk 0:01:12.9]} 22. Kh1
{[%clk 0:01:00.4]} 22... Qd6 {[%clk 0:00:56.2]} 23. Nxf8 {[%clk 0:00:57.5]}
23... Rxf8 {[%clk 0:00:52.1]} 24. Re3 {[%clk 0:00:44.5]} 24... Bf4 {[%clk
0:00:42.9]} 25. Rh3 {[%clk 0:00:36.9]} 25... g5 {[%clk 0:00:39.4]} 26. Kg1
{[%clk 0:00:12.1]} 26... gxh4 {[%clk 0:00:35.1]} 27. Rxh4 {[%clk 0:00:13]} 27...
e3 {[%clk 0:00:29.7]} 28. Nc4 {[%clk 0:00:09]} 28... exf2+ {[%clk 0:00:22.1]}
29. Kf1 {[%clk 0:00:08.9]} 29... Nxc4 {[%clk 0:00:18.4]} 30. Qxc4 {[%clk
0:00:09.1]} 30... Qe7 {[%clk 0:00:19.2]} 31. Qd4+ {[%clk 0:00:05.7]} 31... Kh7
{[%clk 0:00:15.8]} 32. Qxd3 {[%clk 0:00:01.7]} 32... Qxh4 {[%clk 0:00:15.9]} 33.
Qd7+ {[%clk 0:00:02.1]} 33... Kh8 {[%clk 0:00:15.2]} 34. Qd4+ {[%clk 0:00:02.2]}
34... Kh7 {[%clk 0:00:12.8]} 35. Qd7+ {[%clk 0:00:02.4]} 35... Kg6 {[%clk
0:00:12.6]} 36. Qe6+ {[%clk 0:00:01.8]} 36... Rf6 {[%clk 0:00:12.1]} 37. Qg8+
{[%clk 0:00:01.8]} 37... Kh5 {[%clk 0:00:11.4]} 38. Qe8+ {[%clk 0:00:02.1]}
38... Rg6 {[%clk 0:00:10.9]} 39. Qe2+ {[%clk 0:00:02.4]} 39... Qg4 {[%clk
0:00:10.6]} 40. Qxf2 {[%clk 0:00:02.9]} 40... Bg3 {[%clk 0:00:08.9]} 41. Qc5
{[%clk 0:00:03.5]} 41... Qh4 {[%clk 0:00:05.6]} 42. Qxf5+ {[%clk 0:00:02.5]}
42... Rg5 {[%clk 0:00:04.9]} 43. Qf7+ {[%clk 0:00:02.8]} 43... Rg6 {[%clk
0:00:04.4]} 44. Qf5+ {[%clk 0:00:03.5]} 44... Qg5 {[%clk 0:00:04.9]} 45. Qh3+
{[%clk 0:00:03.2]} 45... Bh4 {[%clk 0:00:03.4]} 46. Rd1 {[%clk 0:00:02.4]} 46...
Qg4 {[%clk 0:00:03]} 47. Rd5+ {[%clk 0:00:02.3]} 47... Rg5 {[%clk 0:00:03.7]}
48. Rxg5+ {[%clk 0:00:02.1]} 48... Kxg5 {[%clk 0:00:03.7]} 49. Qe3+ {[%clk
0:00:02.4]} 49... Qf4+ {[%clk 0:00:04.2]} 50. Ke2 {[%clk 0:00:02.6]} 50... Qxe3+
{[%clk 0:00:04.4]} 51. Kxe3 {[%clk 0:00:03.5]} 51... Kf5 {[%clk 0:00:04.8]} 52.
Kf3 {[%clk 0:00:04.1]} 52... Bf6 {[%clk 0:00:04.6]} 53. Ke3 {[%clk 0:00:04.1]}
53... h5 {[%clk 0:00:05]} 54. a4 {[%clk 0:00:03.7]} 54... h4 {[%clk 0:00:05]}
55. Kf3 {[%clk 0:00:03.9]} 55... Be7 {[%clk 0:00:04.2]} 56. b3 {[%clk
0:00:02.9]} 56... Ke5 {[%clk 0:00:04.4]} 57. Ke3 {[%clk 0:00:02.8]} 57... Kd5
{[%clk 0:00:05]} 58. Kd3 {[%clk 0:00:03.3]} 58... Kc5 {[%clk 0:00:05.3]} 59. b4+
{[%clk 0:00:03.6]} 59... Kd5 {[%clk 0:00:05.6]} 60. c4+ {[%clk 0:00:02.6]} 60...
Ke5 {[%clk 0:00:05.3]} 61. Kc3 {[%clk 0:00:02.7]} 61... Kf4 {[%clk 0:00:05.7]}
62. c5 {[%clk 0:00:02.7]} 62... Kg3 {[%clk 0:00:05.7]} 63. Kd4 {[%clk
0:00:01.7]} 63... Kxg2 {[%clk 0:00:05.9]} 64. b5 {[%clk 0:00:02.4]} 64... axb5
{[%clk 0:00:05.5]} 65. a5 {[%clk 0:00:02.8]} 65... Bd8 {[%clk 0:00:03.4]} 66. c6
{[%clk 0:00:02.7]} 66... bxc6 {[%clk 0:00:03.3]} 67. a6 {[%clk 0:00:03.1]} 67...
Bb6+ {[%clk 0:00:04]} 0-1

[Event "Late-Titled-Tuesday-Blitz-February-06-2024"]
[Site "Chess.com"]
[Date "2024.02.06"]
[Round "7"]
[White "DonMicheleCorleone"]
[Black "GoValya"]
[Result "1-0"]
[WhiteElo "2493"]
[BlackElo "2287"]
[TimeControl "180+1"]
[EndTime "15:18:56 PST"]
[Termination "DonMicheleCorleone won by resignation"]

1. e4 {[%clk 0:02:43.3]} 1... e6 {[%clk 0:02:58.9]} 2. d4 {[%clk 0:02:42.4]}
2... d5 {[%clk 0:02:59]} 3. Nc3 {[%clk 0:02:40.8]} 3... Nf6 {[%clk 0:02:56.2]}
4. e5 {[%clk 0:02:40.4]} 4... Nfd7 {[%clk 0:02:56.9]} 5. f4 {[%clk 0:02:40.3]}
5... c5 {[%clk 0:02:53]} 6. Nf3 {[%clk 0:02:40.4]} 6... Nc6 {[%clk 0:02:52]} 7.
Be3 {[%clk 0:02:40.4]} 7... a6 {[%clk 0:02:51.6]} 8. Qd2 {[%clk 0:02:39.8]} 8...
cxd4 {[%clk 0:02:51.7]} 9. Nxd4 {[%clk 0:02:39.6]} 9... Bc5 {[%clk 0:02:48.3]}
10. O-O-O {[%clk 0:02:39]} 10... Nxd4 {[%clk 0:02:43.7]} 11. Bxd4 {[%clk
0:02:39]} 11... Bxd4 {[%clk 0:02:44.4]} 12. Qxd4 {[%clk 0:02:39]} 12... Qb6
{[%clk 0:02:27.6]} 13. Qxb6 {[%clk 0:02:38.3]} 13... Nxb6 {[%clk 0:02:27.6]} 14.
Bd3 {[%clk 0:02:39]} 14... Bd7 {[%clk 0:02:14.1]} 15. g4 {[%clk 0:02:37]} 15...
g6 {[%clk 0:02:09.1]} 16. f5 {[%clk 0:02:30.2]} 16... gxf5 {[%clk 0:02:06.7]}
17. gxf5 {[%clk 0:02:30.5]} 17... exf5 {[%clk 0:02:07.1]} 18. Rhf1 {[%clk
0:02:21.8]} 18... Ke7 {[%clk 0:01:54.2]} 19. Bxf5 {[%clk 0:02:21.1]} 19... Be6
{[%clk 0:01:54.7]} 20. b3 {[%clk 0:02:03.7]} 20... Rac8 {[%clk 0:01:54.5]} 21.
Kb2 {[%clk 0:02:01.7]} 21... Rhg8 {[%clk 0:01:47.7]} 22. Rd2 {[%clk 0:01:47.2]}
22... h6 {[%clk 0:01:46.6]} 23. Rdf2 {[%clk 0:01:21.3]} 23... Rcf8 {[%clk
0:01:35.8]} 24. Ne2 {[%clk 0:01:09.2]} 24... Nd7 {[%clk 0:01:24.2]} 25. Nd4
{[%clk 0:01:09.4]} 25... Nxe5 {[%clk 0:00:33]} 26. Re1 {[%clk 0:01:01]} 26...
Kd6 {[%clk 0:00:33.3]} 27. Rfe2 {[%clk 0:00:38.5]} 27... Nc6 {[%clk 0:00:33.5]}
28. Nxe6 {[%clk 0:00:33]} 28... fxe6 {[%clk 0:00:34.4]} 29. Rxe6+ {[%clk
0:00:32.6]} 29... Kc7 {[%clk 0:00:32.7]} 30. Bd3 {[%clk 0:00:22.6]} 30... h5
{[%clk 0:00:23.8]} 31. Rh6 {[%clk 0:00:22]} 31... Rg5 {[%clk 0:00:23.3]} 32.
Rh7+ {[%clk 0:00:22]} 32... Kb6 {[%clk 0:00:23.9]} 33. h4 {[%clk 0:00:15.7]}
33... Re5 {[%clk 0:00:22.3]} 34. Rxe5 {[%clk 0:00:15.8]} 34... Nxe5 {[%clk
0:00:23.2]} 35. Rxh5 {[%clk 0:00:15.9]} 35... Nxd3+ {[%clk 0:00:22.4]} 36. cxd3
{[%clk 0:00:16.8]} 36... d4 {[%clk 0:00:23.2]} 37. Rd5 {[%clk 0:00:14.7]} 37...
Rf2+ {[%clk 0:00:23.2]} 38. Kb1 {[%clk 0:00:13]} 38... Rf4 {[%clk 0:00:23.5]}
39. h5 {[%clk 0:00:13.1]} 39... Rh4 {[%clk 0:00:23.8]} 40. a3 {[%clk 0:00:11.8]}
40... Kc6 {[%clk 0:00:23.9]} 41. Rg5 {[%clk 0:00:11.3]} 41... Rh2 {[%clk
0:00:22.5]} 42. b4 {[%clk 0:00:09.6]} 42... b6 {[%clk 0:00:22.2]} 43. Kc1 {[%clk
0:00:07.9]} 43... Kd6 {[%clk 0:00:21]} 44. a4 {[%clk 0:00:07.6]} 44... Kc6
{[%clk 0:00:21.1]} 45. b5+ {[%clk 0:00:07.4]} 45... axb5 {[%clk 0:00:21.6]} 46.
axb5+ {[%clk 0:00:08.2]} 46... Kd6 {[%clk 0:00:22]} 47. Kd1 {[%clk 0:00:08.1]}
47... Kc7 {[%clk 0:00:15.7]} 48. Ke1 {[%clk 0:00:07.5]} 48... Kd6 {[%clk
0:00:15.5]} 49. Kf1 {[%clk 0:00:07.8]} 49... Rh3 {[%clk 0:00:15.9]} 50. Ke2
{[%clk 0:00:06.6]} 50... Rh2+ {[%clk 0:00:16.4]} 51. Kf3 {[%clk 0:00:06.4]}
51... Rh3+ {[%clk 0:00:16.5]} 52. Ke4 {[%clk 0:00:06.7]} 52... Rh4+ {[%clk
0:00:17]} 53. Kf5 {[%clk 0:00:06.8]} 53... Kc5 {[%clk 0:00:15.8]} 54. Kg6+
{[%clk 0:00:06.7]} 54... Kb4 {[%clk 0:00:16.2]} 55. h6 {[%clk 0:00:07.1]} 55...
Kc3 {[%clk 0:00:16.5]} 56. Rh5 {[%clk 0:00:06.2]} 56... Rg4+ {[%clk 0:00:13.3]}
57. Kf5 {[%clk 0:00:05.9]} 57... Rg1 {[%clk 0:00:12.9]} 58. h7 {[%clk
0:00:05.3]} 58... Rf1+ {[%clk 0:00:13.4]} 59. Ke5 {[%clk 0:00:04.3]} 59... Rf8
{[%clk 0:00:13.8]} 60. Rh3 {[%clk 0:00:03.4]} 60... Rh8 {[%clk 0:00:13]} 61. Kf6
{[%clk 0:00:03.3]} 61... Kb4 {[%clk 0:00:13.5]} 62. Kg7 {[%clk 0:00:03.3]} 62...
Rxh7+ {[%clk 0:00:14.1]} 63. Kxh7 {[%clk 0:00:04.2]} 63... Kxb5 {[%clk
0:00:14.7]} 64. Kg6 {[%clk 0:00:04.7]} 64... Kc5 {[%clk 0:00:15.1]} 65. Kf5
{[%clk 0:00:05.4]} 65... b5 {[%clk 0:00:15.5]} 66. Ke4 {[%clk 0:00:06]} 66... b4
{[%clk 0:00:16.1]} 67. Rh5+ {[%clk 0:00:06.4]} 67... Kc6 {[%clk 0:00:15.4]} 68.
Kxd4 {[%clk 0:00:07.1]} 1-0

[Event "Late-Titled-Tuesday-Blitz-February-06-2024"]
[Site "Chess.com"]
[Date "2024.02.06"]
[Round "7"]
[White "LyonBeast"]
[Black "Polish_fighter3000"]
[Result "1-0"]
[WhiteElo "3156"]
[BlackElo "3046"]
[TimeControl "180+1"]
[EndTime "15:18:57 PST"]
[Termination "LyonBeast won on time"]

1. e4 {[%clk 0:03:00.9]} 1... e5 {[%clk 0:02:59.9]} 2. Nf3 {[%clk 0:02:59.6]}
2... Nf6 {[%clk 0:03:00.6]} 3. Nxe5 {[%clk 0:02:59.6]} 3... d6 {[%clk
0:03:01.3]} 4. Nf3 {[%clk 0:03:00]} 4... Nxe4 {[%clk 0:03:02]} 5. c4 {[%clk
0:02:59.3]} 5... Be7 {[%clk 0:03:00]} 6. d4 {[%clk 0:02:58]} 6... d5 {[%clk
0:02:50.7]} 7. Bd3 {[%clk 0:02:51.9]} 7... Bf5 {[%clk 0:02:43.2]} 8. O-O {[%clk
0:02:51.1]} 8... dxc4 {[%clk 0:02:42.2]} 9. Bxc4 {[%clk 0:02:50.8]} 9... O-O
{[%clk 0:02:41.9]} 10. Re1 {[%clk 0:02:45.7]} 10... Nd6 {[%clk 0:02:41.9]} 11.
Bd5 {[%clk 0:02:43.3]} 11... Na6 {[%clk 0:02:41.2]} 12. a3 {[%clk 0:02:41.5]}
12... c6 {[%clk 0:02:25]} 13. Bb3 {[%clk 0:02:40]} 13... Nc7 {[%clk 0:02:04.9]}
14. Nc3 {[%clk 0:02:40.2]} 14... Ndb5 {[%clk 0:02:05.5]} 15. Nxb5 {[%clk
0:02:20.6]} 15... Nxb5 {[%clk 0:02:06.4]} 16. d5 {[%clk 0:02:20.4]} 16... Bg4
{[%clk 0:01:43.4]} 17. dxc6 {[%clk 0:02:16.9]} 17... Bxf3 {[%clk 0:01:41.3]} 18.
gxf3 {[%clk 0:01:47.9]} 18... bxc6 {[%clk 0:01:38.3]} 19. Be3 {[%clk 0:01:40]}
19... Bf6 {[%clk 0:01:31.5]} 20. Rc1 {[%clk 0:01:23.3]} 20... Bxb2 {[%clk
0:01:26.4]} 21. Rxc6 {[%clk 0:01:22.3]} 21... Nd4 {[%clk 0:01:19.9]} 22. Rc4
{[%clk 0:01:20.1]} 22... Nxb3 {[%clk 0:01:03.3]} 23. Qxb3 {[%clk 0:01:21]} 23...
Qa5 {[%clk 0:00:51.2]} 24. Rb1 {[%clk 0:01:12.6]} 24... Bf6 {[%clk 0:00:51.1]}
25. Rc5 {[%clk 0:01:05.9]} 25... Qa6 {[%clk 0:00:50]} 26. Rc7 {[%clk 0:01:01]}
26... Be5 {[%clk 0:00:43.9]} 27. Rb7 {[%clk 0:00:59.9]} 27... Qg6+ {[%clk
0:00:42]} 28. Kf1 {[%clk 0:00:58.3]} 28... Bxh2 {[%clk 0:00:39]} 29. Rd1 {[%clk
0:00:54]} 29... Rab8 {[%clk 0:00:21.5]} 30. Rdd7 {[%clk 0:00:49.5]} 30... Rxb7
{[%clk 0:00:20.3]} 31. Qxb7 {[%clk 0:00:50.4]} 31... h5 {[%clk 0:00:18.6]} 32.
Bxa7 {[%clk 0:00:46.1]} 32... h4 {[%clk 0:00:17.5]} 33. Qe4 {[%clk 0:00:44.7]}
33... Qxe4 {[%clk 0:00:04.5]} 34. fxe4 {[%clk 0:00:45.6]} 34... Be5 {[%clk
0:00:04.3]} 35. Kg2 {[%clk 0:00:42.7]} 35... g5 {[%clk 0:00:04.4]} 36. Be3
{[%clk 0:00:41.5]} 36... g4 {[%clk 0:00:04]} 37. Bd4 {[%clk 0:00:19.5]} 37...
Bxd4 {[%clk 0:00:03.6]} 38. Rxd4 {[%clk 0:00:19.4]} 38... Kh7 {[%clk 0:00:03.6]}
39. e5 {[%clk 0:00:19]} 39... Kg6 {[%clk 0:00:02.6]} 40. Rxg4+ {[%clk
0:00:18.6]} 40... Kf5 {[%clk 0:00:03.3]} 41. Rxh4 {[%clk 0:00:18.9]} 41... Ra8
{[%clk 0:00:03.4]} 42. a4 {[%clk 0:00:18.9]} 42... Kxe5 {[%clk 0:00:03.8]} 43.
Kf3 {[%clk 0:00:18.9]} 43... Rb8 {[%clk 0:00:03.7]} 44. Re4+ {[%clk 0:00:17.9]}
44... Kf5 {[%clk 0:00:04]} 45. Re3 {[%clk 0:00:18.1]} 45... Ra8 {[%clk
0:00:03.9]} 46. Ra3 {[%clk 0:00:18.2]} 46... Ra5 {[%clk 0:00:04.4]} 47. Ke3
{[%clk 0:00:18.9]} 47... Ke5 {[%clk 0:00:04.7]} 48. Kd3 {[%clk 0:00:19.2]} 48...
Kd5 {[%clk 0:00:05.2]} 49. Kc3 {[%clk 0:00:19.1]} 49... Kc5 {[%clk 0:00:05.7]}
50. Ra2 {[%clk 0:00:19.2]} 50... Ra7 {[%clk 0:00:02.9]} 51. a5 {[%clk
0:00:18.9]} 51... Rc7 {[%clk 0:00:02.9]} 52. a6 {[%clk 0:00:18.5]} 52... Kb6+
{[%clk 0:00:03.2]} 53. Kd4 {[%clk 0:00:19]} 53... Ka7 {[%clk 0:00:03.9]} 54. Ke5
{[%clk 0:00:19.6]} 54... Rc6 {[%clk 0:00:03.6]} 55. f4 {[%clk 0:00:19.3]} 55...
Re6+ {[%clk 0:00:03.8]} 56. Kf5 {[%clk 0:00:19.7]} 56... Rc6 {[%clk 0:00:03.9]}
57. Ra1 {[%clk 0:00:17.9]} 57... Rd6 {[%clk 0:00:03.7]} 58. Rc1 {[%clk
0:00:17.2]} 58... Kxa6 {[%clk 0:00:03.6]} 59. Rc7 {[%clk 0:00:17.3]} 59... Kb6
{[%clk 0:00:02.3]} 60. Rxf7 {[%clk 0:00:17.6]} 60... Rd1 {[%clk 0:00:02.4]} 61.
Re7 {[%clk 0:00:17.6]} 61... Rf1 {[%clk 0:00:02]} 62. Re4 {[%clk 0:00:17.5]}
62... Kc6 {[%clk 0:00:02.1]} 63. Ke6 {[%clk 0:00:18]} 63... Kc7 {[%clk 0:00:02]}
64. f5 {[%clk 0:00:18.4]} 64... Kd8 {[%clk 0:00:02.5]} 65. Kf6 {[%clk
0:00:18.3]} 65... Rh1 {[%clk 0:00:02.2]} 66. Kg6 {[%clk 0:00:18]} 66... Rg1+
{[%clk 0:00:02.2]} 67. Kf7 {[%clk 0:00:18.5]} 67... Rf1 {[%clk 0:00:01.3]} 68.
Rd4+ {[%clk 0:00:18.8]} 68... Kc7 {[%clk 0:00:01.4]} 69. f6 {[%clk 0:00:19.5]}
69... Kc6 {[%clk 0:00:01.8]} 70. Rd2 {[%clk 0:00:19.3]} 70... Kc7 {[%clk
0:00:01.9]} 71. Ke7 {[%clk 0:00:19.7]} 71... Re1+ {[%clk 0:00:02]} 72. Kf8
{[%clk 0:00:20.1]} 72... Rf1 {[%clk 0:00:02.1]} 73. f7 {[%clk 0:00:20.6]} 1-0

[Event "Late-Titled-Tuesday-Blitz-February-06-2024"]
[Site "Chess.com"]
[Date "2024.02.06"]
[Round "7"]
[White "Adar_07"]
[Black "lachesisQ"]
[Result "1/2-1/2"]
[WhiteElo "2721"]
[BlackElo "3054"]
[TimeControl "180+1"]
[EndTime "15:18:59 PST"]
[Termination "Game drawn - insufficient material"]

1. e4 {[%clk 0:03:00.1]} 1... e6 {[%clk 0:02:59.9]} 2. d4 {[%clk 0:02:59.8]}
2... d5 {[%clk 0:03:00.2]} 3. exd5 {[%clk 0:03:00]} 3... exd5 {[%clk 0:03:00.8]}
4. Nf3 {[%clk 0:03:00.7]} 4... Bd6 {[%clk 0:03:00.2]} 5. Bd3 {[%clk 0:03:00.8]}
5... Ne7 {[%clk 0:02:59.4]} 6. O-O {[%clk 0:03:00.2]} 6... c6 {[%clk 0:02:59.7]}
7. Re1 {[%clk 0:02:59.9]} 7... Bg4 {[%clk 0:02:56.1]} 8. Nbd2 {[%clk 0:02:57.6]}
8... Nd7 {[%clk 0:02:55.6]} 9. Nf1 {[%clk 0:02:57.8]} 9... Qc7 {[%clk
0:02:52.7]} 10. Bg5 {[%clk 0:02:55]} 10... f6 {[%clk 0:02:49.9]} 11. Bh4 {[%clk
0:02:52.2]} 11... O-O-O {[%clk 0:02:40.8]} 12. Bg3 {[%clk 0:02:45.8]} 12... Nf5
{[%clk 0:02:40]} 13. Bxd6 {[%clk 0:02:42.1]} 13... Nxd6 {[%clk 0:02:38.2]} 14.
Ng3 {[%clk 0:02:40.9]} 14... h5 {[%clk 0:02:35.6]} 15. h3 {[%clk 0:02:39.4]}
15... h4 {[%clk 0:02:35.7]} 16. hxg4 {[%clk 0:02:28]} 16... hxg3 {[%clk
0:02:35.2]} 17. fxg3 {[%clk 0:02:28.9]} 17... Rde8 {[%clk 0:01:43.6]} 18. Rxe8+
{[%clk 0:02:23.1]} 18... Rxe8 {[%clk 0:01:44.5]} 19. Qd2 {[%clk 0:02:19.8]}
19... g5 {[%clk 0:01:39.7]} 20. Re1 {[%clk 0:02:13.5]} 20... Ne4 {[%clk
0:01:39.5]} 21. Bxe4 {[%clk 0:02:10.5]} 21... dxe4 {[%clk 0:01:40.4]} 22. Qf2
{[%clk 0:02:09.1]} 22... Qa5 {[%clk 0:01:23.8]} 23. Nd2 {[%clk 0:02:04.7]} 23...
Qxa2 {[%clk 0:01:23.7]} 24. Nxe4 {[%clk 0:02:00.8]} 24... Kc7 {[%clk 0:01:13.4]}
25. c3 {[%clk 0:01:23.9]} 25... Qd5 {[%clk 0:01:12]} 26. Nd2 {[%clk 0:01:23.8]}
26... Rxe1+ {[%clk 0:01:11.9]} 27. Qxe1 {[%clk 0:01:24.7]} 27... a5 {[%clk
0:01:11.7]} 28. Qe4 {[%clk 0:01:23.3]} 28... Qa2 {[%clk 0:01:05.8]} 29. Qb1
{[%clk 0:01:18.6]} 29... Qxb1+ {[%clk 0:01:05.5]} 30. Nxb1 {[%clk 0:01:19.5]}
30... Nb6 {[%clk 0:01:06.1]} 31. Kf2 {[%clk 0:01:16.8]} 31... a4 {[%clk
0:01:01]} 32. Nd2 {[%clk 0:01:16.6]} 32... Nd5 {[%clk 0:01:00.9]} 33. Ne4 {[%clk
0:01:16]} 33... b5 {[%clk 0:00:42.6]} 34. Ke2 {[%clk 0:01:13.3]} 34... Nb6
{[%clk 0:00:43]} 35. Nd2 {[%clk 0:00:49.6]} 35... Kd6 {[%clk 0:00:43.1]} 36. Kd3
{[%clk 0:00:50]} 36... Kd5 {[%clk 0:00:43.4]} 37. Ne4 {[%clk 0:00:49.8]} 37...
Nc4 {[%clk 0:00:40.3]} 38. Nxf6+ {[%clk 0:00:49.7]} 38... Ke6 {[%clk 0:00:40.6]}
39. Ne4 {[%clk 0:00:50.3]} 39... Nxb2+ {[%clk 0:00:40.8]} 40. Kc2 {[%clk
0:00:50.7]} 40... Nc4 {[%clk 0:00:41]} 41. Nxg5+ {[%clk 0:00:51.3]} 41... Kd5
{[%clk 0:00:41.2]} 42. Nh3 {[%clk 0:00:42.9]} 42... Ne3+ {[%clk 0:00:39.9]} 43.
Kb2 {[%clk 0:00:39.5]} 43... Nxg4 {[%clk 0:00:38.1]} 44. Nf4+ {[%clk 0:00:37.8]}
44... Kc4 {[%clk 0:00:38.3]} 45. Ng6 {[%clk 0:00:35.2]} 45... Ne3 {[%clk
0:00:30.4]} 46. Ne5+ {[%clk 0:00:34.8]} 46... Kd5 {[%clk 0:00:30.7]} 47. g4
{[%clk 0:00:33.2]} 47... Nxg2 {[%clk 0:00:18.4]} 48. g5 {[%clk 0:00:31]} 48...
Nf4 {[%clk 0:00:18.8]} 49. g6 {[%clk 0:00:30.6]} 49... Ne6 {[%clk 0:00:19.3]}
50. Nd3 {[%clk 0:00:26.4]} 50... Kc4 {[%clk 0:00:13.5]} 51. Ne5+ {[%clk
0:00:17.8]} 51... Kd5 {[%clk 0:00:13.6]} 52. Nd3 {[%clk 0:00:18.7]} 52... Kd6
{[%clk 0:00:13.5]} 53. Ne5 {[%clk 0:00:15.9]} 53... Ng7 {[%clk 0:00:13.3]} 54.
c4 {[%clk 0:00:15.5]} 54... b4 {[%clk 0:00:12.8]} 55. Nd3 {[%clk 0:00:14.6]}
55... b3 {[%clk 0:00:07.7]} 56. Nc5 {[%clk 0:00:14.2]} 56... Nf5 {[%clk
0:00:06.8]} 57. Nxa4 {[%clk 0:00:13.3]} 57... Ke6 {[%clk 0:00:07.3]} 58. Nc5+
{[%clk 0:00:12.5]} 58... Kf6 {[%clk 0:00:07.6]} 59. Nxb3 {[%clk 0:00:12.9]}
59... Kxg6 {[%clk 0:00:08.1]} 60. Kc3 {[%clk 0:00:13.5]} 60... Kf6 {[%clk
0:00:08.6]} 61. Na5 {[%clk 0:00:14.1]} 61... c5 {[%clk 0:00:04.5]} 62. d5 {[%clk
0:00:12.2]} 62... Nd6 {[%clk 0:00:03.5]} 63. Nb3 {[%clk 0:00:11.3]} 63... Ne4+
{[%clk 0:00:03.9]} 64. Kd3 {[%clk 0:00:11.1]} 64... Ke5 {[%clk 0:00:04.8]} 65.
Ke3 {[%clk 0:00:10.5]} 65... Nd6 {[%clk 0:00:05.2]} 66. Kd3 {[%clk 0:00:09.9]}
66... Ne4 {[%clk 0:00:05.6]} 67. Na5 {[%clk 0:00:10.5]} 67... Nf6 {[%clk
0:00:04.6]} 68. Nb7 {[%clk 0:00:08.2]} 68... Nxd5 {[%clk 0:00:04.9]} 69. cxd5
{[%clk 0:00:06.5]} 69... Kxd5 {[%clk 0:00:05.8]} 70. Nxc5 {[%clk 0:00:07]}
1/2-1/2